bitfinex/quotes_BTCUSD_20250108
["timestamp","ask_amount","ask_price","bid_price","bid_amount"]
[1736324243593,8.53e-05,95812.0,95809.0,1.861317]
[1736324243813,8.53e-05,95812.0,95809.0,1.854317]
[1736324244151,8.53e-05,95812.0,95809.0,1.860317]
[1736324244512,8.53e-05,95812.0,95809.0,1.851317]
[1736324244838,8.53e-05,95812.0,95809.0,1.860317]
[1736324245107,8.53e-05,95812.0,95809.0,1.851317]
[1736324245315,0.1,95874.0,95821.0,0.0973]
[1736324245490,0.0027,95853.0,95850.0,0.208659]
[1736324245780,0.0027,95853.0,95832.0,0.10427474]
[1736324245781,8.53e-05,95906.0,95852.0,0.10427474]
[1736324246042,0.208549,95901.0,95879.0,0.01395454]
[1736324246183,0.208551,95900.0,95880.0,0.10427474]
[1736324246380,0.208563,95894.0,95881.0,0.15]
[1736324246580,0.208554,95899.0,95888.0,0.00907339]
[1736324246788,0.208537,95907.0,95890.0,0.15]
[1736324247129,0.208537,95907.0,95892.0,0.15]
[1736324247330,0.208537,95907.0,95893.0,0.11334813]
[1736324247500,0.208537,95907.0,95897.0,0.00907339]
[1736324247725,0.00015259,95907.0,95898.0,0.22296823]
[1736324248142,0.09092661,95942.0,95914.0,0.01262866]
[1736324248288,0.18710618,95959.0,95914.0,0.01262866]
[1736324248289,0.09092661,95929.0,95914.0,0.01262866]
[1736324248493,0.09092661,95929.0,95914.0,0.02029627]
[1736324248695,0.208477,95934.0,95914.0,0.02029627]
[1736324249107,0.208477,95934.0,95915.0,0.10427474]
[1736324249328,0.208472,95936.0,95918.0,0.00907339]
[1736324249538,0.00131021,95937.0,95919.0,0.10427474]
[1736324249749,0.00131021,95937.0,95920.0,0.10427474]
[1736324249953,0.00131021,95937.0,95914.0,0.03323283]
[1736324250152,0.023,95926.0,95914.0,0.03323283]
[1736324251185,0.00395068,95925.0,95914.0,0.03323283]
[1736324251887,0.00395068,95925.0,95915.0,0.15]
[1736324252118,0.00395068,95925.0,95917.0,0.0755]
[1736324252343,0.00395068,95925.0,95922.0,0.15]
[1736324252547,0.00395068,95925.0,95924.0,0.15907339]
[1736324252756,0.00395068,95925.0,95924.0,0.26334813]
[1736324253221,0.00131021,95937.0,95936.0,0.36754539]
[1736324253428,0.00131021,95937.0,95936.0,0.47182013]
[1736324253429,0.00181854,95937.0,95936.0,0.47182013]
[1736324253846,0.00181854,95937.0,95936.0,0.72342013]
[1736324254052,0.00181854,95937.0,95936.0,0.70042013]
[1736324254269,0.00160152,95965.0,95956.0,0.00907339]
[1736324254482,5.00015246,95957.0,95956.0,0.11334813]
[1736324254687,5.00015246,95957.0,95948.0,0.00907339]
[1736324254899,5.00015246,95957.0,95937.0,0.01080747]
[1736324254900,5.00015246,95957.0,95949.0,0.10427474]
[1736324255109,0.208428,95956.0,95944.0,0.00907339]
[1736324255284,5.00015246,95957.0,95955.0,0.00907339]
[1736324255497,5.00015246,95957.0,95956.0,0.10427474]
[1736324255721,5.00015246,95957.0,95956.0,0.11334813]
[1736324255863,5.00015246,95957.0,95956.0,0.11534813]
[1736324256060,5.00015246,95957.0,95956.0,0.11334813]
[1736324256499,5.00015246,95957.0,95956.0,0.17814813]
[1736324256903,5.00015246,95957.0,95956.0,0.10427474]
[1736324257108,5.00015246,95957.0,95956.0,0.17814813]
[1736324257318,5.00015246,95957.0,95956.0,0.16907474]
[1736324257514,5.00015246,95957.0,95956.0,0.11334813]
[1736324257719,5.00015246,95957.0,95956.0,0.17814813]
[1736324258527,5.00015246,95957.0,95956.0,0.18014813]
[1736324259658,5.00015246,95957.0,95956.0,0.30314813]
[1736324260638,5.00015246,95957.0,95956.0,0.22694813]
[1736324261109,4.949287,95957.0,95956.0,0.22694813]
[1736324261311,4.949287,95957.0,95956.0,0.22690813]
[1736324265587,4.949287,95957.0,95956.0,0.10627474]
[1736324265793,4.949287,95957.0,95956.0,0.17103474]
[1736324266002,4.949287,95957.0,95956.0,0.18010813]
[1736324266388,4.949287,95957.0,95956.0,0.11534813]
[1736324266601,4.949287,95957.0,95956.0,0.17810813]
[1736324266800,4.949287,95957.0,95956.0,0.18010813]
[1736324267265,4.949287,95957.0,95956.0,0.17103474]
[1736324267598,4.949287,95957.0,95956.0,0.10627474]
[1736324267853,4.949287,95957.0,95956.0,0.17103474]
[1736324268301,4.949287,95957.0,95956.0,0.06676]
[1736324268744,4.949287,95957.0,95956.0,0.06476]
[1736324268949,4.949287,95957.0,95956.0,0.06676]
[1736324269356,4.93847953,95957.0,95956.0,0.06676]
[1736324270730,4.93847953,95957.0,95956.0,0.002]
[1736324270962,4.93847953,95957.0,95956.0,0.06676]
[1736324271380,4.93847953,95957.0,95956.0,0.18010813]
[1736324271801,4.93847953,95957.0,95956.0,0.36514813]
[1736324272015,4.93847953,95957.0,95956.0,0.47540813]
[1736324272700,4.93847953,95957.0,95956.0,0.41064813]
[1736324273152,4.93847953,95957.0,95956.0,0.27211619]
[1736324273374,4.93847953,95957.0,95956.0,0.28957619]
[1736324273577,4.93847953,95957.0,95956.0,0.27810813]
[1736324273810,4.93847953,95957.0,95956.0,0.28710813]
[1736324274264,4.93847953,95957.0,95956.0,0.19934813]
[1736324274473,4.93847953,95957.0,95956.0,0.13381619]
[1736324274680,4.93847953,95957.0,95956.0,0.18710813]
[1736324274889,4.93847953,95957.0,95956.0,0.20110813]
[1736324275107,4.93847953,95957.0,95956.0,0.21257619]
[1736324275321,4.93847953,95957.0,95956.0,0.1277428]
[1736324275538,4.93847953,95957.0,95956.0,0.1187428]
[1736324275756,4.93847953,95957.0,95956.0,0.01146806]
[1736324275970,4.93847953,95957.0,95956.0,0.08522806]
[1736324276177,4.93847953,95957.0,95956.0,0.07922806]
[1736324276591,4.93847953,95957.0,95956.0,0.07822806]
[1736324276803,4.93847953,95957.0,95956.0,0.07622806]
[1736324277223,5.14275427,95957.0,95956.0,0.01146806]
[1736324277423,0.20844,95951.0,95944.0,0.06476]
[1736324277840,0.416905,95945.0,95936.0,0.023]
[1736324278052,0.416905,95945.0,95941.0,0.06476]
[1736324278259,0.0276,95953.0,95937.0,0.06476]
[1736324278260,0.208466,95939.0,95937.0,0.06476]
[1736324278669,0.208466,95939.0,95931.0,0.00907339]
[1736324278851,0.208466,95939.0,95936.0,0.06476]
[1736324279050,0.208459,95943.0,95937.0,0.10427474]
[1736324279255,0.208459,95943.0,95937.0,0.11587061]
[1736324279622,0.208459,95943.0,95937.0,0.11787061]
[1736324279829,0.208459,95943.0,95938.0,0.01159587]
[1736324280034,0.208459,95943.0,95939.0,0.10427474]
[1736324280448,0.208459,95943.0,95940.0,0.04392096]
[1736324280654,0.208459,95943.0,95941.0,0.03232509]
[1736324280859,0.208459,95943.0,95941.0,0.01159587]
[1736324281711,0.208459,95943.0,95942.0,0.03459587]
[1736324282572,0.208459,95943.0,95942.0,0.01159587]
[1736324282779,0.21895496,95943.0,95942.0,0.01159587]
[1736324282990,0.21895496,95943.0,95894.0,0.49480383]
[1736324282991,0.208491,95927.0,95926.0,0.06516]
[1736324283191,0.208491,95927.0,95926.0,0.0975113]
[1736324283417,0.208491,95927.0,95926.0,0.06516]
[1736324283687,0.208491,95927.0,95926.0,0.07682468]
[1736324284189,0.208487,95929.0,95926.0,0.18109942]
[1736324284401,0.208487,95929.0,95927.0,0.12727474]
[1736324284620,0.208487,95929.0,95927.0,0.13893942]
[1736324285034,0.208487,95929.0,95927.0,0.01166468]
[1736324285502,0.208487,95929.0,95926.0,0.00250833]
[1736324285503,0.416974,95929.0,95926.0,0.00850833]
[1736324285720,0.416974,95929.0,95926.0,0.00050833]
[1736324286138,0.208487,95929.0,95927.0,0.008]
[1736324286355,0.208477,95934.0,95919.0,0.04670833]
[1736324286537,0.208497,95925.0,95920.0,0.10427474]
[1736324286961,0.208498,95924.0,95920.0,0.10427474]
[1736324287167,0.10050833,95944.0,95920.0,0.10427474]
[1736324287379,0.2085,95923.0,95919.0,0.04670833]
[1736324287807,0.417002,95923.0,95919.0,0.04670833]
[1736324288227,0.417002,95923.0,95917.0,0.0001704]
[1736324288439,0.417002,95923.0,95919.0,0.001]
[1736324289078,0.417002,95923.0,95918.0,0.10427474]
[1736324289280,0.418002,95923.0,95919.0,0.009]
[1736324289938,0.001,95923.0,95922.0,0.00907339]
[1736324290142,0.001,95923.0,95922.0,0.11334813]
[1736324290989,0.208481,95932.0,95922.0,0.11334813]
[1736324291230,0.2501764,95932.0,95923.0,0.10427474]
[1736324291436,0.26042975,95932.0,95923.0,0.10427474]
[1736324291851,0.21873435,95932.0,95923.0,0.10427474]
[1736324292057,0.21873435,95932.0,95926.0,0.00907339]
[1736324292261,0.21873435,95932.0,95927.0,0.10427474]
[1736324292894,0.21873435,95932.0,95928.0,0.00907339]
[1736324293107,0.42721535,95932.0,95929.0,0.10427474]
[1736324293312,0.21873435,95932.0,95929.0,0.10427474]
[1736324293761,0.01025335,95932.0,95929.0,0.10427474]
[1736324293972,0.208483,95931.0,95929.0,0.10427474]
[1736324294613,0.208483,95931.0,95924.0,0.0652]
[1736324294614,0.208496,95925.0,95924.0,0.0652]
[1736324294817,0.208496,95925.0,95924.0,0.16947474]
[1736324295042,0.208496,95925.0,95917.0,0.0001704]
[1736324295247,0.208511,95918.0,95917.0,0.07444379]
[1736324295426,0.208511,95918.0,95917.0,0.16964514]
[1736324295631,0.2710615,95918.0,95917.0,0.10444514]
[1736324295840,0.208511,95918.0,95917.0,0.10444514]
[1736324296388,0.208498,95924.0,95917.0,0.10444514]
[1736324296589,0.208498,95924.0,95918.0,0.10427474]
[1736324297379,0.208497,95925.0,95921.0,0.00907339]
[1736324297576,0.208497,95925.0,95922.0,0.18567474]
[1736324297804,0.208489,95929.0,95922.0,0.18567474]
[1736324298735,0.416978,95929.0,95922.0,0.18567474]
[1736324298963,0.416978,95929.0,95922.0,0.18967474]
[1736324299240,0.416978,95929.0,95922.0,0.18567474]
[1736324299630,0.208489,95929.0,95924.0,0.00907339]
[1736324299829,0.208489,95929.0,95925.0,0.10427474]
[1736324301247,0.208489,95929.0,95925.0,0.10627474]
[1736324301788,0.00842531,95931.0,95925.0,0.10627474]
[1736324301997,0.208473,95936.0,95929.0,0.00907339]
[1736324302193,0.208473,95936.0,95930.0,0.11334813]
[1736324304400,0.209473,95936.0,95930.0,0.11334813]
[1736324305010,0.001,95936.0,95935.0,0.00907339]
[1736324305239,0.001,95936.0,95935.0,0.11334813]
[1736324305474,0.001,95936.0,95935.0,0.13634813]
[1736324305692,0.001,95936.0,95935.0,0.26989038]
[1736324305904,0.001,95936.0,95935.0,0.26884813]
[1736324307136,0.208439,95952.0,95943.0,0.00907339]
[1736324307345,0.208439,95952.0,95943.0,0.20154813]
[1736324307532,0.00674841,95953.0,95943.0,0.27994813]
[1736324308353,0.20845,95947.0,95943.0,0.25694813]
[1736324308558,0.20845,95947.0,95943.0,0.25894813]
[1736324308768,0.2084085,95947.0,95943.0,0.25694813]
[1736324308982,0.20856094,95947.0,95944.0,0.10427474]
[1736324309171,0.20856094,95947.0,95946.0,0.03207339]
[1736324309172,0.00015244,95947.0,95946.0,0.03207339]
[1736324309376,0.00015244,95947.0,95946.0,0.13634813]
[1736324309806,0.00015244,95947.0,95946.0,0.28634813]
[1736324309941,0.00015244,95947.0,95946.0,0.33494813]
[1736324310143,0.00015244,95947.0,95946.0,0.41674813]
[1736324310553,0.00015244,95947.0,95946.0,0.42839068]
[1736324310754,0.00015244,95947.0,95946.0,0.42939068]
[1736324312862,4.93832707,95957.0,95956.0,0.28777339]
[1736324313120,4.93832707,95957.0,95956.0,0.62347613]
[1736324313592,4.93832707,95957.0,95956.0,0.41504813]
[1736324313819,4.93832707,95957.0,95956.0,0.42669068]
[1736324314393,4.93832707,95957.0,95956.0,0.43569068]
[1736324314633,4.93832707,95957.0,95956.0,0.47960813]
[1736324314842,4.93832707,95957.0,95956.0,0.48860813]
[1736324315045,4.93832707,95957.0,95956.0,0.47960813]
[1736324315226,4.93832707,95957.0,95956.0,0.41804813]
[1736324315461,4.93832707,95957.0,95956.0,0.38597474]
[1736324315681,4.93832707,95957.0,95956.0,0.45956813]
[1736324315886,4.93832707,95957.0,95956.0,0.45656813]
[1736324316300,4.93832707,95957.0,95956.0,0.48256813]
[1736324316508,4.93832707,95957.0,95956.0,0.49156813]
[1736324317307,4.93832707,95957.0,95956.0,0.49417537]
[1736324317512,4.93832707,95957.0,95956.0,0.48256813]
[1736324317744,4.93832707,95957.0,95956.0,0.48456813]
[1736324317984,4.93832707,95957.0,95956.0,0.47956813]
[1736324318190,4.88832707,95957.0,95956.0,0.48056813]
[1736324318397,4.76022707,95957.0,95956.0,0.68956813]
[1736324318598,4.68212707,95957.0,95956.0,0.68956813]
[1736324318802,3.05422707,95957.0,95956.0,0.68856813]
[1736324319011,1.55322383,95957.0,95956.0,0.68856813]
[1736324319217,0.31785895,95957.0,95956.0,0.66012206]
[1736324319423,8.53e-05,95986.0,95985.0,0.00907339]
[1736324319631,8.53e-05,95986.0,95985.0,0.56027471]
[1736324319632,0.00023771,95986.0,95985.0,0.56027471]
[1736324319843,0.00023771,95986.0,95985.0,0.49471313]
[1736324320050,0.00023771,95986.0,95985.0,0.55923313]
[1736324320257,0.00023771,95986.0,95985.0,0.65923313]
[1736324320462,0.00023771,95986.0,95985.0,0.59831313]
[1736324320673,0.00023771,95986.0,95985.0,0.66883313]
[1736324320881,0.00023771,95986.0,95985.0,0.66283313]
[1736324321084,8.53e-05,95996.0,95991.0,0.25907339]
[1736324321294,8.53e-05,95996.0,95991.0,0.48634813]
[1736324323330,8.53e-05,95996.0,95991.0,0.64282813]
[1736324323511,8.53e-05,95996.0,95991.0,0.65182813]
[1736324323711,0.00163015,95992.0,95991.0,0.65182813]
[1736324323911,0.00163015,95992.0,95991.0,0.66342222]
[1736324324774,0.00163015,95992.0,95991.0,0.66742222]
[1736324325169,0.00163015,95992.0,95991.0,0.54442222]
[1736324325366,0.00163015,95992.0,95991.0,0.53534883]
[1736324325594,0.00163015,95992.0,95991.0,0.50894222]
[1736324325780,0.00163015,95992.0,95991.0,0.54442222]
[1736324325998,0.00163015,95992.0,95991.0,0.35246222]
[1736324326133,0.00163015,95992.0,95991.0,0.36386813]
[1736324326535,0.00163015,95992.0,95991.0,0.46386813]
[1736324326977,0.00163015,95992.0,95991.0,0.39934813]
[1736324327221,0.00163015,95992.0,95991.0,0.46386813]
[1736324327439,0.00163015,95992.0,95991.0,0.45486813]
[1736324327649,0.00163015,95992.0,95991.0,0.35086813]
[1736324327868,0.00163015,95992.0,95991.0,0.35079474]
[1736324328071,0.00163015,95992.0,95991.0,0.35386813]
[1736324328282,0.00163015,95992.0,95991.0,0.33086813]
[1736324328495,0.00163015,95992.0,95991.0,0.32786813]
[1736324328721,0.00163015,95992.0,95991.0,0.29034813]
[1736324328935,0.00163015,95992.0,95991.0,0.35486813]
[1736324329423,8.53e-05,95996.0,95995.0,0.56741739]
[1736324329653,0.0759,96041.0,95999.0,0.38207339]
[1736324329869,0.0759,96041.0,95999.0,0.48634813]
[1736324331027,0.0759,96041.0,96007.0,0.86739139]
[1736324331239,0.0759,96041.0,96007.0,0.97166613]
[1736324331480,0.0759,96041.0,96007.0,0.99466613]
[1736324331683,0.0759,96041.0,96007.0,1.00618427]
[1736324332152,0.0454,96044.0,96018.0,0.56736739]
[1736324332326,0.00208061,96019.0,96018.0,0.75916213]
[1736324332933,0.00208061,96019.0,96018.0,0.7706676]
[1736324333683,0.00208061,96019.0,96018.0,0.5706676]
[1736324333998,0.00208061,96019.0,96018.0,0.56155421]
[1736324334181,0.00208061,96019.0,96018.0,0.5796276]
[1736324334399,0.00208061,96019.0,96018.0,0.3483336]
[1736324334622,0.00208061,96019.0,96018.0,0.27234813]
[1736324334848,0.00208061,96019.0,96018.0,0.35982813]
[1736324335114,0.00208061,96019.0,96018.0,0.21482813]
[1736324335329,0.00208061,96019.0,96018.0,0.19182813]
[1736324335510,0.00208061,96019.0,96018.0,0.18682813]
[1736324335853,0.00208061,96019.0,96018.0,0.18182813]
[1736324336254,0.00208061,96019.0,96018.0,0.19082813]
[1736324336503,0.00208061,96019.0,96018.0,0.18182813]
[1736324336900,0.00208061,96019.0,96018.0,0.18882813]
[1736324337096,0.00208061,96019.0,96018.0,0.18482813]
[1736324337327,0.00208061,96019.0,96018.0,0.12034813]
[1736324337533,0.00208061,96019.0,96018.0,0.18682813]
[1736324337951,0.00208061,96019.0,96018.0,0.18482813]
[1736324338423,0.00208061,96019.0,96018.0,0.18682813]
[1736324338648,0.00208061,96019.0,96018.0,0.35982813]
[1736324339294,0.00078604,96019.0,96018.0,0.35982813]
[1736324339933,0.00078604,96019.0,96018.0,0.35282813]
[1736324340143,0.00078604,96019.0,96018.0,0.36182813]
[1736324340480,0.00078604,96019.0,96018.0,0.35282813]
[1736324340711,0.00078604,96019.0,96018.0,0.35982813]
[1736324340915,0.00078604,96019.0,96018.0,0.33682813]
[1736324341126,0.00078604,96019.0,96018.0,0.35382813]
[1736324341659,0.00078604,96019.0,96018.0,0.29534813]
[1736324341847,0.00078604,96019.0,96018.0,0.35082813]
[1736324341981,0.00078604,96019.0,96018.0,0.35482813]
[1736324342615,0.00078604,96019.0,96018.0,0.35082813]
[1736324343041,0.00078604,96019.0,96018.0,0.35214813]
[1736324343245,0.00078604,96019.0,96018.0,0.36114813]
[1736324344039,0.00078604,96019.0,96018.0,0.3636536]
[1736324344239,0.00078604,96019.0,96018.0,0.3726536]
[1736324344663,0.00078604,96019.0,96018.0,0.59865999]
[1736324344878,0.0144969,96023.0,96022.0,0.25907339]
[1736324345090,0.0144969,96023.0,96022.0,0.41835452]
[1736324345492,0.0144969,96023.0,96022.0,0.42985999]
[1736324345886,0.0144969,96023.0,96022.0,0.32985999]
[1736324346333,0.0144969,96023.0,96022.0,0.35814813]
[1736324347369,0.0144969,96023.0,96022.0,0.36714813]
[1736324347603,0.0144969,96023.0,96022.0,0.35214813]
[1736324347970,0.0144969,96023.0,96022.0,0.36114813]
[1736324348177,0.0144969,96023.0,96022.0,0.35214813]
[1736324348355,0.0144969,96023.0,96022.0,0.38420409]
[1736324348533,0.0144969,96023.0,96022.0,0.38920409]
[1736324349866,0.01440483,96023.0,96022.0,0.39820409]
[1736324350112,0.01440483,96023.0,96022.0,0.38920409]
[1736324350526,0.01440483,96023.0,96022.0,0.39820409]
[1736324351204,0.01440483,96023.0,96022.0,0.39320409]
[1736324351374,0.01440483,96023.0,96022.0,0.38820409]
[1736324351559,0.01440483,96023.0,96022.0,0.39720409]
[1736324351988,0.01440483,96023.0,96022.0,0.39320409]
[1736324352189,0.01440483,96023.0,96022.0,0.39920409]
[1736324352412,0.01440483,96023.0,96022.0,0.33340409]
[1736324352614,0.01440483,96023.0,96022.0,0.39920409]
[1736324353072,0.01440483,96023.0,96022.0,0.39020409]
[1736324353717,0.01440483,96023.0,96022.0,0.39920409]
[1736324355489,0.01440483,96023.0,96022.0,0.59920409]
[1736324355978,0.01440483,96023.0,96022.0,0.606025]
[1736324358250,0.01420483,96023.0,96022.0,0.606025]
[1736324359926,8.52e-05,96053.0,96030.0,0.56734139]
[1736324360246,8.52e-05,96053.0,96030.0,0.72667209]
[1736324361225,8.52e-05,96053.0,96030.0,0.74224684]
[1736324361434,8.52e-05,96053.0,96030.0,0.75124684]
[1736324362161,8.52e-05,96053.0,96030.0,0.73967209]
[1736324362573,8.52e-05,96053.0,96030.0,0.75122222]
[1736324364099,0.00209422,96047.0,96046.0,0.00907339]
[1736324364301,0.00209422,96047.0,96046.0,0.59243709]
[1736324365050,0.00209422,96047.0,96046.0,0.60398722]
[1736324365423,0.00209422,96047.0,96046.0,0.60598722]
[1736324366889,0.00209422,96047.0,96046.0,0.61098722]
[1736324367195,0.00072372,96047.0,96046.0,0.61098722]
[1736324368152,0.00072372,96047.0,96046.0,0.61832067]
[1736324368352,0.00072372,96047.0,96046.0,0.58626471]
[1736324368797,0.00072372,96047.0,96046.0,0.57893126]
[1736324369117,0.13202372,96047.0,96046.0,0.13189826]
[1736324369318,0.13202372,96047.0,96046.0,0.19769826]
[1736324369668,0.13253145,96047.0,96046.0,0.19769826]
[1736324369877,0.13253145,96047.0,96046.0,0.18614813]
[1736324370293,0.44503719,96047.0,96046.0,0.11127474]
[1736324370491,0.208251,96038.0,96034.0,0.00907339]
[1736324370691,0.045,96036.0,96035.0,0.17007474]
[1736324370917,0.0827,96035.0,96033.0,0.0658]
[1736324371177,0.045,96036.0,96033.0,0.10427474]
[1736324371385,0.208292,96019.0,96017.0,0.00907339]
[1736324371594,0.208285,96022.0,96018.0,0.17007474]
[1736324371792,0.208289,96020.0,96018.0,0.10427474]
[1736324371978,0.208289,96020.0,96019.0,0.0658]
[1736324372214,0.208289,96020.0,96019.0,0.17007474]
[1736324372413,0.208289,96020.0,96013.0,0.0658]
[1736324372414,0.0806,96019.0,96013.0,0.0658]
[1736324372644,0.0806,96019.0,96014.0,0.10427474]
[1736324373051,0.2083,96015.0,96014.0,0.10427474]
[1736324373475,0.0762,95998.0,95992.0,0.00907339]
[1736324373682,0.208318,96007.0,95983.0,0.0001704]
[1736324373683,0.208368,95984.0,95983.0,0.0001704]
[1736324373894,0.208358,95989.0,95983.0,0.050186]
[1736324374099,0.208347,95994.0,95987.0,0.00907339]
[1736324374308,0.208359,95988.0,95987.0,0.05013845]
[1736324374492,0.416718,95988.0,95983.0,0.00032275]
[1736324374752,0.208363,95986.0,95983.0,0.00032275]
[1736324375971,0.003,95984.0,95983.0,0.00032275]
[1736324376176,0.208363,95986.0,95983.0,0.00032275]
[1736324376356,0.210363,95986.0,95983.0,0.00032275]
[1736324376684,0.212363,95986.0,95983.0,0.00032275]
[1736324376857,0.2398798,95986.0,95983.0,0.00032275]
[1736324377066,0.001,95984.0,95983.0,0.00032275]
[1736324377447,0.210363,95986.0,95983.0,0.00032275]
[1736324378984,0.208363,95986.0,95983.0,0.00032275]
[1736324379212,0.208368,95984.0,95983.0,0.00032275]
[1736324379459,0.291468,95984.0,95983.0,0.00032275]
[1736324379865,0.38139461,95984.0,95983.0,0.00032275]
[1736324380168,0.290468,95984.0,95983.0,0.00032275]
[1736324380690,0.291468,95984.0,95983.0,0.00032275]
[1736324381390,0.29897591,95984.0,95983.0,0.00032275]
[1736324381640,0.33068374,95984.0,95983.0,0.00032275]
[1736324382136,0.32968374,95984.0,95983.0,0.00032275]
[1736324382394,0.03921574,95984.0,95964.0,0.06476]
[1736324382616,0.284572,95983.0,95964.0,0.06476]
[1736324382793,0.492944,95983.0,95963.0,0.06476]
[1736324382984,0.54700901,95983.0,95963.0,0.06476]
[1736324383217,0.47080901,95983.0,95963.0,0.06476]
[1736324383422,0.0756,95980.0,95963.0,0.06476]
[1736324383623,0.286078,95979.0,95963.0,0.06476]
[1736324383831,0.208411,95964.0,95963.0,0.00015241]
[1736324385077,0.208411,95964.0,95963.0,0.00215241]
[1736324385324,0.208406,95967.0,95963.0,0.10642715]
[1736324385526,0.42416388,95978.0,95969.0,0.00907339]
[1736324385841,0.208394,95973.0,95969.0,0.10427474]
[1736324386605,0.208408,95966.0,95963.0,0.0132258]
[1736324386800,0.20647276,95966.0,95965.0,0.15]
[1736324387005,0.20647276,95966.0,95965.0,0.25427474]
[1736324387227,0.0777,95979.0,95965.0,0.25427474]
[1736324387427,0.208394,95972.0,95967.0,0.15]
[1736324387900,0.416789,95972.0,95967.0,0.15]
[1736324388096,0.416789,95972.0,95968.0,0.06476]
[1736324389433,0.416789,95972.0,95968.0,0.06676]
[1736324391659,0.208398,95970.0,95968.0,0.06676]
[1736324392483,0.208398,95970.0,95968.0,0.002]
[1736324392688,0.208398,95970.0,95963.0,0.00015241]
[1736324392886,0.208411,95964.0,95963.0,0.25442715]
[1736324393116,0.208411,95964.0,95963.0,0.31918715]
[1736324394519,0.208402,95968.0,95964.0,0.15]
[1736324395524,0.208402,95968.0,95963.0,0.16918715]
[1736324399591,0.208402,95968.0,95964.0,0.15]
[1736324400534,0.208397,95971.0,95964.0,0.15]
[1736324401129,0.286079,95979.0,95964.0,0.11334813]
[1736324401130,0.00756322,95973.0,95964.0,0.11334813]
[1736324401341,0.0832,95989.0,95978.0,0.00907339]
[1736324401543,0.208359,95988.0,95983.0,0.00907339]
[1736324401752,0.208359,95988.0,95984.0,0.10427474]
[1736324403057,0.0832,95989.0,95974.0,0.00907339]
[1736324403058,0.20838,95979.0,95974.0,0.00907339]
[1736324403264,0.41676,95979.0,95975.0,0.10427474]
[1736324404042,0.41676,95979.0,95976.0,0.06292]
[1736324404220,0.41676,95979.0,95977.0,0.10427474]
[1736324404427,0.20838,95979.0,95977.0,0.10427474]
[1736324404866,0.208374,95981.0,95977.0,0.10427474]
[1736324405273,0.0464,95993.0,95989.0,0.00907339]
[1736324405474,0.208342,95996.0,95990.0,0.11334813]
[1736324405919,0.0816,95997.0,95990.0,0.11334813]
[1736324406117,0.208342,95996.0,95990.0,0.11334813]
[1736324407024,0.416684,95996.0,95990.0,0.11334813]
[1736324407231,0.208346,95994.0,95991.0,0.06292]
[1736324407434,0.0498278,95995.0,95989.0,0.06292]
[1736324407637,0.0816,95997.0,95986.0,0.06292]
[1736324407769,0.208361,95987.0,95986.0,0.06292]
[1736324408838,0.284361,95987.0,95986.0,0.06292]
[1736324409308,0.076,95987.0,95970.0,0.00452]
[1736324409472,0.0547,95986.0,95985.0,0.03]
[1736324410405,0.0471,95986.0,95985.0,0.03]
[1736324413389,0.05465854,95986.0,95985.0,0.03]
[1736324414153,0.15465854,95986.0,95970.0,0.00452]
[1736324414550,0.208396,95971.0,95970.0,0.00452]
[1736324416679,0.21489794,95971.0,95970.0,0.00452]
[1736324418911,0.208384,95977.0,95970.0,0.10879474]
[1736324419122,0.208379,95979.0,95974.0,0.00907339]
[1736324419333,0.0471,95986.0,95970.0,0.00452]
[1736324419334,0.208363,95987.0,95982.0,0.00907339]
[1736324419506,0.208363,95987.0,95983.0,0.10427474]
[1736324420778,0.208363,95986.0,95983.0,0.10427474]
[1736324421010,0.416726,95986.0,95983.0,0.10427474]
[1736324421268,0.208389,95974.0,95970.0,0.00452]
[1736324421508,0.41678,95974.0,95973.0,0.00907339]
[1736324421769,0.41678,95974.0,95973.0,0.11334813]
[1736324423050,0.41678,95974.0,95973.0,0.10427474]
[1736324423295,0.41678,95974.0,95973.0,0.16719474]
[1736324423546,0.41678,95974.0,95973.0,0.06292]
[1736324423547,0.208389,95974.0,95973.0,0.06292]
[1736324423809,0.208392,95973.0,95970.0,0.00452]
[1736324424050,0.208392,95973.0,95971.0,0.06292]
[1736324424535,0.416784,95973.0,95970.0,0.10879474]
[1736324424728,0.208392,95973.0,95972.0,0.06292]
[1736324424936,0.208396,95971.0,95970.0,0.00452]
[1736324425142,0.208396,95971.0,95970.0,0.06744]
[1736324425792,0.208396,95971.0,95970.0,0.00452]
[1736324427215,0.208384,95977.0,95970.0,0.11786813]
[1736324427498,0.208384,95977.0,95971.0,0.10427474]
[1736324428473,0.416768,95977.0,95971.0,0.10427474]
[1736324429024,0.0829,95990.0,95976.0,0.00907339]
[1736324429025,0.00801481,95986.0,95976.0,0.00907339]
[1736324429276,0.208377,95980.0,95977.0,0.10427474]
[1736324430034,0.416754,95980.0,95977.0,0.10427474]
[1736324430270,0.208396,95971.0,95970.0,0.00452]
[1736324431231,0.288196,95971.0,95970.0,0.06744]
[1736324432964,0.29605952,95971.0,95970.0,0.06744]
[1736324434574,0.29605952,95971.0,95970.0,0.00452]
[1736324444792,0.38698613,95971.0,95970.0,1e-06]
[1736324445033,0.38698613,95971.0,95944.0,0.0001704]
[1736324445034,0.0803,95964.0,95948.0,0.06368]
[1736324445185,0.208426,95957.0,95948.0,0.06368]
[1736324445601,0.208426,95957.0,95944.0,0.0001704]
[1736324445765,0.257126,95957.0,95944.0,0.0001704]
[1736324446972,0.34805261,95957.0,95944.0,0.0001704]
[1736324447176,0.42365261,95957.0,95944.0,0.0001704]
[1736324448812,0.50770137,95957.0,95944.0,0.0001704]
[1736324449335,0.42365261,95957.0,95944.0,0.0001704]
[1736324450188,0.4319027,95957.0,95944.0,0.0001704]
[1736324454440,0.34097609,95957.0,95944.0,0.0001704]
[1736324455247,0.21667609,95957.0,95949.0,0.00907339]
[1736324455909,0.208426,95957.0,95949.0,0.00907339]
[1736324456365,0.208409,95965.0,95959.0,0.00907339]
[1736324456573,0.208409,95965.0,95960.0,0.10427474]
[1736324456776,0.416819,95965.0,95961.0,0.06368]
[1736324456978,0.416819,95965.0,95962.0,0.00321582]
[1736324457334,0.208394,95972.0,95971.0,0.083181]
[1736324462857,0.25013323,95972.0,95971.0,0.083181]
[1736324463064,0.208394,95972.0,95971.0,0.083181]
[1736324463912,0.291194,95972.0,95971.0,0.083181]
[1736324464543,0.208394,95972.0,95971.0,0.083181]
[1736324468011,0.340694,95972.0,95971.0,0.083181]
[1736324468221,0.62154025,95972.0,95971.0,0.083181]
[1736324468433,0.72154025,95972.0,95971.0,0.083181]
[1736324468643,0.72154025,95972.0,95971.0,0.062341]
[1736324468845,0.290826,95957.0,95956.0,0.01]
[1736324469471,0.53592735,95957.0,95956.0,0.01]